lending/lending_fUSD_20240604
["ID","MTS","AMOUNT","RATE_DAILY","PERIOD"]
[328533015,1717499449213,-500.0,0.00029589,6]
[328533016,1717499449222,-500.0,0.00029589,6]
[328533017,1717499449232,-500.0,0.00029589,2]
[328533018,1717499449241,-500.0,0.00029589,6]
[328533019,1717499449250,-348.12609326,0.00029589,2]
[328533020,1717499449258,-500.0,0.00029589,6]
[328533021,1717499449267,-500.0,0.00029589,6]
[328533022,1717499449276,-500.0,0.00029589,6]
[328533023,1717499449286,-500.0,0.00029589,6]
[328533024,1717499449295,-500.0,0.00029589,6]
[328533025,1717499449304,-500.0,0.00029589,6]
[328533026,1717499449314,-500.0,0.00029589,6]
[328533027,1717499449323,-500.0,0.00029589,6]
[328533028,1717499449331,-500.0,0.00029589,6]
[328533029,1717499449341,-500.0,0.00029589,6]
[328533030,1717499449350,-500.0,0.00029589,6]
[328533031,1717499449358,-500.0,0.00029589,6]
[328533032,1717499449367,-510.90387728,0.00029589,6]
[328533033,1717499449376,-769.44,0.00029589,6]
[328533034,1717499449385,-500.0,0.00029589,6]
[328533035,1717499449394,-500.0,0.00029589,6]
[328533036,1717499449404,-769.44,0.00029589,6]
[328533037,1717499449414,-301.80242847,0.00029589,6]
[328533038,1717499449423,-500.0,0.00029589,6]
[328533039,1717499449431,-769.44,0.00029589,6]
[328533040,1717499449440,-500.0,0.00029589,6]
[328533041,1717499449449,-500.0,0.00029589,6]
[328533042,1717499449458,-592.91,0.00029589,6]
[328533043,1717499449467,-500.0,0.00029589,6]
[328533044,1717499449477,-500.0,0.00029589,6]
[328533045,1717499449486,-500.0,0.00029589,6]
[328533046,1717499449495,-419.929477,0.00029589,7]
[328533047,1717499449504,-419.929477,0.00029589,7]
[328533048,1717499449513,-419.929477,0.00029589,7]
[328533049,1717499449524,-500.0,0.00029589,6]
[328533050,1717499449534,-500.0,0.00029589,6]
[328533051,1717499449545,-151.0,0.00029589,7]
[328533052,1717499449555,-500.0,0.00029589,6]
[328533053,1717499449564,-201.89046282,0.00029592,2]
[328533054,1717499449573,-452.14783162,0.00029606,2]
[328533055,1717499449583,-363.529057,0.0002961,2]
[328533056,1717499449592,-353.25647791,0.00029639,2]
[328533057,1717499449601,-152.0,0.00029651,3]
[328533058,1717499449610,-3888.47581676,0.00029658,15]
[328533059,1717499449619,-452.14783162,0.00029665,2]
[328533060,1717499449628,-353.25647791,0.00029686,2]
[328533061,1717499449638,-201.89046282,0.00029695,2]
[328533062,1717499449647,-166.7289316,0.00029706,2]
[328533063,1717499449656,-353.25647791,0.0002972,2]
[328533064,1717499449666,-452.14783162,0.00029724,2]
[328533065,1717499449676,-187.62942239,0.0002974,2]
[328533066,1717499449685,-153.42536742,0.00029753,2]
[328533067,1717499449694,-452.14783162,0.00029783,2]
[328533068,1717499449703,-153.42536742,0.00029789,2]
[328533069,1717499449712,-201.89046282,0.00029797,2]
[328533070,1717499449721,-153.5451216,0.0002981,2]
[328533071,1717499449731,-154.97739494,0.00029817,2]
[328533072,1717499449739,-626.6660688,0.00029832,6]
[328533073,1717499449749,-500.0,0.00029832,6]
[328533074,1717499449758,-500.0,0.00029832,6]
[328533075,1717499449767,-253.97681888,0.00029832,6]
[328533076,1717499449776,-500.0,0.00029832,6]
[328533077,1717499449785,-500.0,0.00029832,6]
[328533078,1717499449795,-500.0,0.00029832,6]
[328533079,1717499449804,-500.0,0.00029832,6]
[328533080,1717499449814,-452.14783162,0.00029841,2]
[328533081,1717499449824,-1683.97689068,0.00029849,2]
[328533082,1717499449832,-1683.97689062,0.00029854,2]
[328533083,1717499449841,-1683.97689062,0.00029858,2]
[328533084,1717499449850,-1683.97689062,0.00029863,2]
[328533085,1717499449859,-1683.97689062,0.00029868,2]
[328533086,1717499449868,-1683.97689062,0.00029872,2]
[328533087,1717499449877,-500.0,0.00029874,3]
[328533088,1717499449886,-1683.97689062,0.00029877,2]
[328533089,1717499449895,-924.79150113,0.00029879,2]
[328533090,1717499449904,-1683.97689062,0.00029881,2]
[328533091,1717499449916,-500.0,0.00029882,3]
[328533092,1717499449926,-500.0,0.00029882,3]
[328533093,1717499449935,-1683.97689062,0.00029886,2]
[328533094,1717499449944,-1683.97689062,0.00029891,2]
[328533095,1717499449955,-419.929477,0.00029891,7]
[328533096,1717499449964,-500.0,0.00029891,3]
[328533097,1717499449973,-500.0,0.00029891,3]
[328533098,1717499449982,-500.0,0.00029891,3]
[328533099,1717499449992,-1683.97689062,0.00029895,2]
[328533100,1717499450002,-215.64274997,0.00029897,2]
[328533101,1717499450012,-500.0,0.00029898,6]
[328533102,1717499450021,-500.0,0.00029898,6]
[328533103,1717499450030,-500.0,0.00029898,6]
[328533104,1717499450039,-500.0,0.00029898,6]
[328533105,1717499450048,-500.0,0.00029898,6]
[328533106,1717499450057,-500.0,0.00029898,6]
[328533107,1717499450066,-500.0,0.00029898,6]
[328533108,1717499450075,-500.0,0.00029898,6]
[328533109,1717499450084,-711.04,0.00029898,6]
[328533110,1717499450093,-500.0,0.00029898,6]
[328533111,1717499450101,-500.0,0.00029898,6]
[328533112,1717499450111,-500.0,0.00029898,6]
[328533113,1717499450119,-500.0,0.00029898,6]
[328533114,1717499450128,-1063.99,0.00029898,6]
[328533115,1717499450137,-500.0,0.00029898,6]
[328533116,1717499450146,-559.02,0.00029898,6]
[328533117,1717499450158,-2316.49,0.00029898,6]
[328533118,1717499450168,-500.0,0.00029898,6]
[328533119,1717499450177,-500.0,0.00029898,6]
[328533120,1717499450186,-500.0,0.00029898,6]
[328533121,1717499450195,-666.09,0.00029898,6]
[328533122,1717499450216,-500.0,0.00029898,6]
[328533123,1717499450226,-500.0,0.00029898,6]
[328533124,1717499450237,-574.92458314,0.00029898,6]
[328533125,1717499450248,-500.0,0.00029898,6]
[328533126,1717499450257,-500.0,0.00029898,6]
[328533127,1717499450267,-500.0,0.00029898,6]
[328533128,1717499450276,-166.413836,0.00029898,7]
[328533129,1717499450286,-505.47,0.00029898,6]
[328533130,1717499450295,-756.43,0.00029898,6]
[328533131,1717499450305,-151.0,0.00029898,7]
[328533132,1717499450314,-500.0,0.00029898,6]
[328533133,1717499450324,-151.0,0.00029898,7]
[328533134,1717499450333,-500.0,0.00029898,6]
[328533135,1717499450343,-538.2,0.00029898,6]
[328533136,1717499450352,-500.0,0.00029898,6]
[328533137,1717499450362,-500.0,0.00029898,6]
[328533138,1717499450371,-500.0,0.00029899,6]
[328533139,1717499450381,-500.0,0.00029899,6]
[328533140,1717499450390,-181.72,0.00029899,6]
[328533141,1717499450400,-500.0,0.00029899,6]
[328533142,1717499450409,-249.6,0.00029899,6]
[328533143,1717499450419,-500.0,0.00029899,6]
[328533144,1717499450428,-500.0,0.00029899,6]
[328533145,1717499450438,-500.0,0.00029899,6]
[328533146,1717499450447,-500.0,0.00029899,6]
[328533147,1717499450456,-500.0,0.00029899,6]
[328533148,1717499450466,-500.0,0.00029899,6]
[328533149,1717499450476,-327.61647032,0.00029899,6]
[328533150,1717499450486,-500.0,0.00029899,6]
[328533151,1717499450495,-197.91,0.00029899,6]
[328533152,1717499450505,-500.0,0.00029899,6]
[328533153,1717499450516,-500.0,0.00029899,6]
[328533154,1717499450526,-500.0,0.00029899,6]
[328533155,1717499450536,-1797.8,0.00029899,6]
[328533156,1717499450545,-567.49,0.00029899,6]
[328533157,1717499450554,-500.0,0.00029899,6]
[328533158,1717499450564,-1238.98,0.00029899,6]
[328533159,1717499450573,-500.0,0.00029899,6]
[328533160,1717499450582,-500.0,0.00029899,6]
[328533161,1717499450591,-587.0,0.00029899,6]
[328533162,1717499450601,-500.0,0.00029899,6]
[328533163,1717499450610,-871.30489442,0.000299,2]
[328533164,1717499450620,-2397.2087532,0.000299,3]
[328533165,1717499450629,-4226.53164849,0.000299,3]
[328533166,1717499450836,-1288.45242978,0.000299,3]
[328533167,1717499450846,-500.0,0.000299,3]
[328533168,1717499450855,-289.83961877,0.000299,3]
[328533169,1717499450864,-1190.19990355,0.000299,3]
[328533170,1717499450874,-18629.80627424,0.000299,3]
[328533171,1717499450883,-500.0,0.000299,3]
[328533172,1717499450892,-35428.24582235,0.000299,7]
[328533173,1717499450902,-11483.42216575,0.000299,3]
[328533174,1717499450912,-1000.0,0.000299,2]
[328533175,1717499450927,-1000.0,0.000299,2]
[328533176,1717499450936,-1000.0,0.000299,2]
[328533177,1717499450946,-1000.0,0.000299,2]
[328533178,1717499450956,-1000.0,0.000299,2]
[328533179,1717499450965,-1000.0,0.000299,2]
[328533180,1717499450975,-1000.0,0.000299,2]
[328533181,1717499450984,-1000.0,0.000299,2]
[328533182,1717499450998,-1000.0,0.000299,2]
[328533183,1717499451008,-1000.0,0.000299,2]
[328533184,1717499451019,-1683.97689062,0.000299,2]
[328533185,1717499451030,-452.14783162,0.000299,2]
[328533186,1717499451041,-500.0,0.000299,3]
[328533187,1717499451050,-151.0,0.000299,7]
[328533188,1717499451060,-3888.47581676,0.000299,15]
[328533189,1717499451069,-201.89046282,0.000299,2]
[328533190,1717499451079,-151.0,0.000299,7]
[328533191,1717499451089,-2624.78917162,0.000299,2]
[328533192,1717499451099,-417.16158756,0.000299,2]
[328533193,1717499451109,-1046.19228326,0.000299,2]
[328533194,1717499451118,-419.929477,0.000299,7]
[328533195,1717499451292,-166.7289316,0.00029909,2]
[328533196,1717499451303,-514.86,0.00029909,6]
[328533197,1717499451313,-500.0,0.00029909,6]
[328533198,1717499451322,-500.0,0.00029909,6]
[328533199,1717499451332,-500.0,0.00029909,6]
[328533200,1717499451342,-500.0,0.00029909,6]
[328533201,1717499451351,-500.0,0.00029909,6]
[328533202,1717499451361,-500.0,0.00029909,6]
[328533203,1717499451371,-500.0,0.00029909,6]
[328533204,1717499451381,-236.69,0.00029909,6]
[328533205,1717499451390,-1945.47,0.00029909,6]
[328533206,1717499451399,-500.0,0.00029909,6]
[328533207,1717499451409,-517.05,0.00029909,6]
[328533208,1717499451420,-500.0,0.00029909,6]
[328533209,1717499451429,-500.0,0.00029909,6]
[328533210,1717499451438,-769.44,0.00029909,6]
[328533211,1717499451447,-4935.36,0.0002991,2]
[328533212,1717499451456,-363.529057,0.0002992,2]
[328533213,1717499451465,-294.21406988,0.00029945,2]
[328533214,1717499451475,-1841.0,0.00029949,15]
[328533215,1717499451484,-196.0,0.0002995,15]
[328533216,1717499451493,-153.05703102,0.00029954,2]
[328533217,1717499451503,-155.22722341,0.00029956,2]
[328533218,1717499451512,-150.0,0.00029957,2]
[328533219,1717499451521,-1841.0,0.00029959,15]
[328533220,1717499451531,-150.5,0.0002996,15]
[328533221,1717499451539,-308148.20983776,0.00029967,13]
[328533222,1717499451552,-34262.18008084,0.00029967,13]
[328533223,1717499451561,-1841.0,0.00029967,15]
[328533224,1717499451570,-570.0,0.00029967,15]
[328533225,1717499451579,-570.0,0.00029967,15]
[328533226,1717499451588,-1841.0,0.00029969,15]
[328533227,1717499451597,-208.0,0.0002997,2]
[328533228,1717499451606,-150.5,0.0002997,15]
[328533229,1717499451615,-1841.0,0.00029977,15]
[328533230,1717499451625,-1841.0,0.00029977,15]
[328533231,1717499451634,-570.0,0.00029977,15]
[328533232,1717499451644,-570.0,0.00029977,15]
[328533233,1717499451654,-570.0,0.00029977,15]
[328533234,1717499451663,-151.0,0.00029979,7]
[328533235,1717499451672,-176.22,0.00029979,6]
[328533236,1717499451681,-500.0,0.00029979,6]
[328533237,1717499451690,-263.86,0.00029979,6]
[328533238,1717499451699,-500.0,0.00029979,6]
[328533239,1717499451708,-500.0,0.00029979,6]
[328533240,1717499451718,-559.02,0.00029979,6]
[328533241,1717499451727,-2316.49,0.00029979,6]
[328533242,1717499451736,-307.48,0.00029979,6]
[328533243,1717499451745,-500.0,0.00029979,6]
[328533244,1717499451755,-666.09,0.00029979,6]
[328533245,1717499451764,-500.0,0.00029979,6]
[328533246,1717499451773,-500.0,0.00029979,6]
[328533247,1717499451783,-505.47,0.00029979,6]
[328533248,1717499451792,-500.0,0.00029979,6]
[328533249,1717499451802,-631.32410392,0.00029979,6]
[328533250,1717499451811,-1842.51,0.0002998,15]
[328533251,1717499451820,-579.0,0.0002998,15]
[328533252,1717499451830,-99301.47896429,0.0002998,2]
[328533253,1717499451839,-1500.0,0.0002998,2]
[328533254,1717499451849,-151.0,0.0002998,7]
[328533255,1717499451859,-419.929477,0.0002998,7]
[328533256,1717499451868,-500.0,0.00029981,6]
[328533257,1717499451877,-500.0,0.00029981,6]
[328533258,1717499451887,-500.0,0.00029981,6]
[328533259,1717499451897,-711.04,0.00029981,6]
[328533260,1717499451906,-500.0,0.00029981,6]
[328533261,1717499451919,-500.0,0.00029981,6]
[328533262,1717499451928,-1063.99,0.00029981,6]
[328533263,1717499451938,-500.0,0.00029981,6]
[328533264,1717499451947,-500.0,0.00029981,6]
[328533265,1717499451958,-500.0,0.00029981,6]
[328533266,1717499451967,-251.97,0.00029981,6]
[328533267,1717499451977,-500.0,0.00029981,6]
[328533268,1717499451986,-756.43,0.00029981,6]
[328533269,1717499451998,-500.0,0.00029981,6]
[328533270,1717499452007,-500.0,0.00029981,6]
[328533271,1717499452016,-7941.61,0.00029982,7]
[328533272,1717499452026,-263.86872,0.00029982,7]
[328533273,1717499452035,-1841.0,0.00029987,15]
[328533274,1717499452044,-1841.0,0.00029987,15]
[328533275,1717499452053,-570.0,0.00029987,15]
[328533276,1717499452062,-570.0,0.00029987,15]
[328533277,1717499452071,-570.0,0.00029987,15]
[328533278,1717499452081,-154.68196461,0.00029989,2]
[328533279,1717499452100,-1841.0,0.0002999,15]
[328533280,1717499452111,-570.0,0.0002999,15]
[328533281,1717499452121,-1675.81121869,0.00029994,7]
[328533282,1717499452130,-9164.68357953,0.00029996,2]
[328533283,1717499452140,-594.08642016,0.00029996,6]
[328533284,1717499452150,-500.0,0.00029996,6]
[328533285,1717499452160,-500.0,0.00029996,6]
[328533286,1717499452170,-500.0,0.00029996,6]
[328533287,1717499452179,-500.0,0.00029996,6]
[328533288,1717499452189,-500.0,0.00029996,6]
[328533289,1717499452198,-500.0,0.00029996,6]
[328533290,1717499452208,-1797.8,0.00029996,6]
[328533291,1717499452218,-567.49,0.00029996,6]
[328533292,1717499452228,-1238.98,0.00029996,6]
[328533293,1717499452237,-514.86,0.00029996,6]
[328533294,1717499452247,-500.0,0.00029996,6]
[328533295,1717499452256,-500.0,0.00029996,6]
[328533296,1717499452266,-500.0,0.00029996,6]
[328533297,1717499452275,-500.0,0.00029996,6]
[328533298,1717499452285,-500.0,0.00029996,6]
[328533299,1717499452294,-500.0,0.00029996,6]
[328533300,1717499452304,-500.0,0.00029996,6]
[328533301,1717499452314,-500.0,0.00029996,6]
[328533302,1717499452323,-1945.47,0.00029996,6]
[328533303,1717499452333,-587.0,0.00029996,6]
[328533304,1717499452343,-500.0,0.00029996,6]
[328533305,1717499452353,-500.0,0.00029996,6]
[328533306,1717499452363,-769.44,0.00029996,6]
[328533307,1717499452372,-1247.48473383,0.00029997,10]
[328533308,1717499452382,-500.0,0.00029997,6]
[328533309,1717499452392,-500.0,0.00029997,6]
[328533310,1717499452401,-500.0,0.00029997,6]
[328533311,1717499452411,-500.0,0.00029997,6]
[328533312,1717499452421,-500.0,0.00029997,6]
[328533313,1717499452431,-500.0,0.00029997,6]
[328533314,1717499452441,-548.84,0.00029997,6]
[328533315,1717499452451,-500.0,0.00029997,6]
[328533316,1717499452460,-500.0,0.00029997,6]
[328533317,1717499452469,-500.0,0.00029997,6]
[328533318,1717499452479,-500.0,0.00029997,6]
[328533319,1717499452488,-500.0,0.00029997,6]
[328533320,1717499452498,-500.0,0.00029997,6]
[328533321,1717499452508,-500.0,0.00029997,6]
[328533322,1717499452518,-500.0,0.00029997,6]
[328533323,1717499452528,-500.0,0.00029997,6]
[328533324,1717499452538,-500.0,0.00029997,6]
[328533325,1717499452547,-711.04,0.00029997,6]
[328533326,1717499452558,-711.04,0.00029997,6]
[328533327,1717499452567,-711.04,0.00029997,6]
[328533328,1717499452576,-500.0,0.00029997,6]
[328533329,1717499452585,-500.0,0.00029997,6]
[328533330,1717499452595,-500.0,0.00029997,6]
[328533331,1717499452604,-500.0,0.00029997,6]
[328533332,1717499452614,-500.0,0.00029997,6]
[328533333,1717499452623,-500.0,0.00029997,6]
[328533334,1717499452632,-500.0,0.00029997,6]
[328533335,1717499452641,-500.0,0.00029997,6]
[328533336,1717499452650,-500.0,0.00029997,6]
[328533337,1717499452659,-500.0,0.00029997,6]
[328533338,1717499452670,-500.0,0.00029997,6]
[328533339,1717499452679,-500.0,0.00029997,6]
[328533340,1717499452688,-500.0,0.00029997,6]
[328533341,1717499452697,-1797.8,0.00029997,6]
[328533342,1717499452707,-1797.8,0.00029997,6]
[328533343,1717499452716,-1063.99,0.00029997,6]
[328533344,1717499452726,-1063.99,0.00029997,6]
[328533345,1717499452735,-1063.99,0.00029997,6]
[328533346,1717499452745,-567.49,0.00029997,6]
[328533347,1717499452755,-567.49,0.00029997,6]
[328533348,1717499452764,-559.02,0.00029997,6]
[328533349,1717499452773,-559.02,0.00029997,6]
[328533350,1717499452783,-559.02,0.00029997,6]
[328533351,1717499452792,-2316.49,0.00029997,6]
[328533352,1717499452802,-2316.49,0.00029997,6]
[328533353,1717499452812,-1238.98,0.00029997,6]
[328533354,1717499452822,-1238.98,0.00029997,6]
[328533355,1717499452832,-2316.49,0.00029997,6]
[328533356,1717499452841,-500.0,0.00029997,6]
[328533357,1717499452851,-596.01,0.00029997,6]
[328533358,1717499452861,-514.86,0.00029997,6]
[328533359,1717499452870,-514.86,0.00029997,6]
[328533360,1717499452879,-500.0,0.00029997,6]
[328533361,1717499452888,-500.0,0.00029997,6]
[328533362,1717499452897,-233.62135471,0.00029997,6]
[328533363,1717499452907,-500.0,0.00029997,6]
[328533364,1717499452917,-500.0,0.00029997,6]
[328533365,1717499452930,-500.0,0.00029997,6]
[328533366,1717499452939,-500.0,0.00029997,6]
[328533367,1717499452949,-500.0,0.00029997,6]
[328533368,1717499452959,-500.0,0.00029997,6]
[328533369,1717499452969,-500.0,0.00029997,6]
[328533370,1717499452978,-500.0,0.00029997,6]
[328533371,1717499452988,-500.0,0.00029997,6]
[328533372,1717499452998,-500.0,0.00029997,6]
[328533373,1717499453007,-500.0,0.00029997,6]
[328533374,1717499453016,-500.0,0.00029997,6]
[328533375,1717499453025,-666.09,0.00029997,6]
[328533376,1717499453035,-666.09,0.00029997,6]
[328533377,1717499453044,-666.09,0.00029997,6]
[328533378,1717499453054,-500.0,0.00029997,6]
[328533379,1717499453063,-500.0,0.00029997,6]
[328533380,1717499453072,-500.0,0.00029997,6]
[328533381,1717499453081,-500.0,0.00029997,6]
[328533382,1717499453091,-500.0,0.00029997,6]
[328533383,1717499453100,-500.0,0.00029997,6]
[328533384,1717499453110,-500.0,0.00029997,6]
[328533385,1717499453120,-500.0,0.00029997,6]
[328533386,1717499453129,-500.0,0.00029997,6]
[328533387,1717499453138,-500.0,0.00029997,6]
[328533388,1717499453148,-500.0,0.00029997,6]
[328533389,1717499453157,-500.0,0.00029997,6]
[328533390,1717499453169,-500.0,0.00029997,6]
[328533391,1717499453180,-1945.47,0.00029997,6]
[328533392,1717499453190,-1945.47,0.00029997,6]
[328533393,1717499453199,-505.47,0.00029997,6]
[328533394,1717499453209,-505.47,0.00029997,6]
[328533395,1717499453218,-505.47,0.00029997,6]
[328533396,1717499453227,-756.43,0.00029997,6]
[328533397,1717499453237,-756.43,0.00029997,6]
[328533398,1717499453247,-756.43,0.00029997,6]
[328533399,1717499453256,-587.0,0.00029997,6]
[328533400,1717499453265,-587.0,0.00029997,6]
[328533401,1717499453275,-151.0,0.00029997,7]
[328533402,1717499453284,-500.0,0.00029997,6]
[328533403,1717499453293,-500.0,0.00029997,6]
[328533404,1717499453303,-500.0,0.00029997,6]
[328533405,1717499453312,-339.09115928,0.00029997,6]
[328533406,1717499453322,-500.0,0.00029997,6]
[328533407,1717499453331,-204.18,0.00029997,6]
[328533408,1717499453341,-500.0,0.00029997,6]
[328533409,1717499453351,-500.0,0.00029997,6]
[328533410,1717499453360,-500.0,0.00029997,6]
[328533411,1717499453369,-769.44,0.00029997,6]
[328533412,1717499453379,-769.44,0.00029997,6]
[328533413,1717499453389,-527.48854037,0.00029998,2]
[328533414,1717499453399,-294.65420568,0.00029998,2]
[328533415,1717499453408,-534.82107433,0.00029998,2]
[328533416,1717499453419,-203.06630869,0.00029998,2]
[328533417,1717499453429,-341.50588946,0.00029998,2]
[328533418,1717499453438,-2051.3470854,0.00029998,2]
[328533419,1717499453448,-324.66852359,0.00029998,2]
[328533420,1717499453458,-729.39756318,0.00029998,2]
[328533421,1717499453468,-639.96226292,0.00029998,2]
[328533422,1717499453478,-223.54221359,0.00029998,2]
[328533423,1717499453488,-6253.29174589,0.00029998,2]
[328533424,1717499453498,-164.23592444,0.00029998,2]
[328533425,1717499453508,-411.24369396,0.00029998,2]
[328533426,1717499453517,-1777.58503617,0.00029998,2]
[328533427,1717499453526,-5600.01167634,0.00029998,2]
[328533428,1717499453536,-348.29694263,0.00029998,2]
[328533429,1717499453545,-634.94381214,0.00029998,2]
[328533430,1717499453555,-156.08857812,0.00029998,2]
[328533431,1717499453565,-865.61417686,0.00029998,3]
[328533432,1717499453574,-1134.57912358,0.00029998,2]
[328533433,1717499453584,-1803.93057379,0.00029998,2]
[328533434,1717499453593,-1175.92306266,0.00029998,2]
[328533435,1717499453603,-648.7653376,0.00029998,2]
[328533436,1717499453612,-362.02673304,0.00029998,10]
[328533437,1717499453622,-177.71714091,0.00029998,2]
[328533438,1717499453631,-437362.7304507,0.00029998,2]
[328533439,1717499453641,-1757.5235759,0.00029998,2]
[328533440,1717499453650,-1121.50472689,0.00029998,2]
[328533441,1717499453659,-635.99793769,0.00029998,2]
[328533442,1717499453670,-198.88651711,0.00029998,2]
[328533443,1717499453680,-304.50120173,0.00029998,2]
[328533444,1717499453689,-372.38901499,0.00029998,2]
[328533445,1717499453699,-255.6503088,0.00029998,3]
[328533446,1717499453708,-155.0,0.00029998,2]
[328533447,1717499453718,-359.43833368,0.00029998,2]
[328533448,1717499453727,-256.59095034,0.00029998,2]
[328533449,1717499453736,-2996.28516923,0.00029998,2]
[328533450,1717499453745,-181.85456066,0.00029998,2]
[328533451,1717499453755,-544.95457193,0.00029998,2]
[328533452,1717499453764,-791.38159288,0.00029998,2]
[328533453,1717499453773,-209.19889504,0.00029998,2]
[328533454,1717499453783,-300.14317843,0.00029998,2]
[328533455,1717499453791,-1465.62018346,0.00029998,2]
[328533456,1717499453801,-155.71614936,0.00029998,2]
[328533457,1717499453811,-848.89413655,0.00029998,2]
[328533458,1717499453820,-362.18308999,0.00029998,2]
[328533459,1717499453829,-2644.00835833,0.00029998,2]
[328533460,1717499453838,-455.12064649,0.00029998,2]
[328533461,1717499453847,-4438.46997973,0.00029998,2]
[328533462,1717499453856,-159.0456061,0.00029998,2]
[328533463,1717499453866,-170.66220389,0.00029998,2]
[328533464,1717499453875,-364.27737293,0.00029998,2]
[328533465,1717499453883,-1468.52047716,0.00029998,2]
[328533466,1717499453893,-1497.14333897,0.00029998,2]
[328533467,1717499453903,-169.46736414,0.00029998,2]
[328533468,1717499453911,-927.84008549,0.00029998,2]
[328533469,1717499453927,-9426.54718191,0.00029998,2]
[328533470,1717499453937,-155.78676667,0.00029998,2]
[328533471,1717499453947,-155.41968253,0.00029998,2]
[328533472,1717499453956,-1265.11365737,0.00029998,2]
[328533473,1717499453967,-321.83343734,0.00029998,2]
[328533474,1717499453976,-1400.60780106,0.00029998,2]
[328533475,1717499453986,-156.82169487,0.00029998,2]
[328533476,1717499453997,-480.99346609,0.00029998,2]
[328533477,1717499454007,-205.26674052,0.00029998,2]
[328533478,1717499454016,-269.86542745,0.00029998,2]
[328533479,1717499454025,-1669.98667596,0.00029998,2]
[328533480,1717499454034,-228.9243535,0.00029998,2]
[328533481,1717499454043,-2847.8793361,0.00029998,2]
[328533482,1717499454053,-410.74413779,0.00029998,2]
[328533483,1717499454062,-2367.58913066,0.00029998,2]
[328533484,1717499454071,-77309.24137507,0.00029998,2]
[328533485,1717499454081,-205.3803142,0.00029998,2]
[328533486,1717499454091,-500.0,0.00029998,6]
[328533487,1717499454100,-500.0,0.00029998,6]
[328533488,1717499454109,-500.0,0.00029998,6]
[328533489,1717499454119,-271.65498901,0.00029998,2]
[328533490,1717499454128,-500.0,0.00029998,6]
[328533491,1717499454138,-500.0,0.00029998,6]
[328533492,1717499454147,-500.0,0.00029998,6]
[328533493,1717499454158,-711.04,0.00029998,6]
[328533494,1717499454167,-500.0,0.00029998,6]
[328533495,1717499454176,-500.0,0.00029998,6]
[328533496,1717499454186,-500.0,0.00029998,6]
[328533497,1717499454195,-500.0,0.00029998,6]
[328533498,1717499454205,-500.0,0.00029998,6]
[328533499,1717499454215,-1797.8,0.00029998,6]
[328533500,1717499454224,-1063.99,0.00029998,6]
[328533501,1717499454379,-567.49,0.00029998,6]
[328533502,1717499454388,-559.02,0.00029998,6]
[328533503,1717499454399,-1238.98,0.00029998,6]
[328533504,1717499454408,-2316.49,0.00029998,6]
[328533505,1717499454419,-514.86,0.00029998,6]
[328533506,1717499454428,-500.0,0.00029998,6]
[328533507,1717499454437,-500.0,0.00029998,6]
[328533508,1717499454446,-500.0,0.00029998,6]
[328533509,1717499454456,-500.0,0.00029998,6]
[328533510,1717499454466,-500.0,0.00029998,6]
[328533511,1717499454475,-500.0,0.00029998,6]
[328533512,1717499454484,-666.09,0.00029998,6]
[328533513,1717499454493,-500.0,0.00029998,6]
[328533514,1717499454503,-500.0,0.00029998,6]